[Event "*** Qualifier 4: Titled Tuesday 3|2 Blitz"]
[Site "Chess.com"]
[Date "2017.04.25"]
[Round "1"]
[White "rasmussvane"]
[Black "rasool78"]
[Result "1-0"]
[WhiteElo "2525"]
[BlackElo "2239"]
[TimeControl "180+2"]
[EndTime "13:10:08 PDT"]
[Termination "rasmussvane won by resignation"]

1. Nf3 {[%clk 0:03:01.6]} 1... g6 {[%clk 0:03:00.7]} 2. c4 {[%clk 0:03:02.9]}
2... Bg7 {[%clk 0:03:00.9]} 3. d4 {[%clk 0:03:02.7]} 3... c5 {[%clk 0:03:00.7]}
4. d5 {[%clk 0:03:03.6]} 4... d6 {[%clk 0:03:01.9]} 5. e4 {[%clk 0:03:04.5]}
5... Na6 {[%clk 0:02:59.4]} 6. Bd3 {[%clk 0:03:03.5]} 6... Nc7 {[%clk
0:02:59.5]} 7. O-O {[%clk 0:03:04.5]} 7... Nf6 {[%clk 0:02:58.4]} 8. h3 {[%clk
0:03:05.6]} 8... a6 {[%clk 0:02:58.4]} 9. a4 {[%clk 0:03:05.5]} 9... O-O {[%clk
0:02:54.7]} 10. Nc3 {[%clk 0:03:06.6]} 10... Rb8 {[%clk 0:02:51.9]} 11. Bf4
{[%clk 0:03:07.5]} 11... e6 {[%clk 0:02:31.5]} 12. dxe6 {[%clk 0:02:56.5]} 12...
Nxe6 {[%clk 0:02:13.9]} 13. Bh2 {[%clk 0:02:57.2]} 13... Nd4 {[%clk 0:01:43.6]}
14. Nxd4 {[%clk 0:02:54.8]} 14... cxd4 {[%clk 0:01:44.7]} 15. Nd5 {[%clk
0:02:50.6]} 15... Nxd5 {[%clk 0:01:43.4]} 16. cxd5 {[%clk 0:02:52]} 16... f5
{[%clk 0:01:16.9]} 17. exf5 {[%clk 0:02:42]} 17... Bxf5 {[%clk 0:01:17.7]} 18.
Re1 {[%clk 0:02:39.1]} 18... Kh8 {[%clk 0:01:01.9]} 19. Bg3 {[%clk 0:02:39.5]}
19... Rc8 {[%clk 0:00:42.5]} 20. Qb3 {[%clk 0:02:33.8]} 20... Bxd3 {[%clk
0:00:32.2]} 21. Qxd3 {[%clk 0:02:35.7]} 21... Rf5 {[%clk 0:00:33]} 22. Qb3
{[%clk 0:02:35.8]} 22... Qa5 {[%clk 0:00:22.9]} 23. Qxb7 {[%clk 0:02:33.4]}
23... Rd8 {[%clk 0:00:22.1]} 24. Re7 {[%clk 0:02:19]} 24... Rg8 {[%clk
0:00:22.2]} 25. Bxd6 {[%clk 0:02:05.8]} 25... Qxd5 {[%clk 0:00:22.5]} 26. Qxd5
{[%clk 0:02:04]} 26... Rxd5 {[%clk 0:00:23.5]} 27. Bb4 {[%clk 0:02:03.4]} 27...
d3 {[%clk 0:00:23.3]} 28. Bc3 {[%clk 0:01:59.3]} 28... Bxc3 {[%clk 0:00:24]} 29.
bxc3 {[%clk 0:02:01.2]} 29... d2 {[%clk 0:00:23.6]} 30. Rd1 {[%clk 0:02:01.5]}
30... Rc8 {[%clk 0:00:24.4]} 31. Re2 {[%clk 0:01:55.2]} 31... Rxc3 {[%clk
0:00:19.9]} 32. Rexd2 {[%clk 0:01:56.6]} 32... Rxd2 {[%clk 0:00:21]} 33. Rxd2
{[%clk 0:01:58.5]} 33... Rc4 {[%clk 0:00:22]} 34. Ra2 {[%clk 0:01:46.3]} 34...
Kg7 {[%clk 0:00:21.9]} 35. Kf1 {[%clk 0:01:47.8]} 35... Kf6 {[%clk 0:00:23.1]}
36. Ke2 {[%clk 0:01:49.3]} 36... Ke5 {[%clk 0:00:23.7]} 37. Kd3 {[%clk
0:01:50.1]} 37... Rb4 {[%clk 0:00:24.7]} 38. a5 {[%clk 0:01:50.7]} 38... Rb5
{[%clk 0:00:24.8]} 39. Kc4 {[%clk 0:01:51.9]} 39... Kf4 {[%clk 0:00:24.9]} 40.
Ra3 {[%clk 0:01:49.5]} 40... g5 {[%clk 0:00:25.1]} 41. Rf3+ {[%clk 0:01:48.3]}
41... Ke4 {[%clk 0:00:25.8]} 42. Re3+ {[%clk 0:01:49.2]} 42... Kf4 {[%clk
0:00:26.4]} 43. Ra3 {[%clk 0:01:39.5]} 43... h5 {[%clk 0:00:26.6]} 44. Rf3+
{[%clk 0:01:38.3]} 44... Ke4 {[%clk 0:00:27.1]} 45. Re3+ {[%clk 0:01:38.6]}
45... Kf4 {[%clk 0:00:28.2]} 46. Ra3 {[%clk 0:01:36.9]} 46... h4 {[%clk
0:00:28.7]} 47. Ra2 {[%clk 0:01:33.6]} 47... g4 {[%clk 0:00:28]} 48. hxg4 {[%clk
0:01:33]} 48... Kxg4 {[%clk 0:00:29.5]} 49. Ra4 {[%clk 0:01:33.5]} 49... Kf4
{[%clk 0:00:31]} 50. Kd3+ {[%clk 0:01:32.6]} 50... Kg5 {[%clk 0:00:31.9]} 51.
Ke3 {[%clk 0:01:33.3]} 51... Rb3+ {[%clk 0:00:32.2]} 52. Ke4 {[%clk 0:01:32.5]}
52... Rb5 {[%clk 0:00:31.4]} 53. Ra3 {[%clk 0:01:30.1]} 53... Kg4 {[%clk
0:00:32]} 54. Ke3 {[%clk 0:01:28.6]} 54... Kg5 {[%clk 0:00:32.6]} 55. Kf3 {[%clk
0:01:26.9]} 55... Kf5 {[%clk 0:00:31.4]} 56. Ra2 {[%clk 0:01:20.5]} 56... Rb3+
{[%clk 0:00:31.7]} 57. Ke2 {[%clk 0:01:21.9]} 57... Rb5 {[%clk 0:00:27.3]} 58.
Ra4 {[%clk 0:01:21.1]} 58... Kg5 {[%clk 0:00:28.1]} 59. f3 {[%clk 0:01:21.4]}
59... Rb2+ {[%clk 0:00:27.1]} 60. Kf1 {[%clk 0:01:22.4]} 60... Rb1+ {[%clk
0:00:17.9]} 61. Kf2 {[%clk 0:01:23.6]} 61... Rb5 {[%clk 0:00:16.6]} 62. Kg1
{[%clk 0:01:23.6]} 62... h3 {[%clk 0:00:07.7]} 63. gxh3 {[%clk 0:01:20.7]} 63...
Rb2 {[%clk 0:00:09.2]} 64. h4+ {[%clk 0:01:16.7]} 64... Kh5 {[%clk 0:00:10]} 65.
Kf1 {[%clk 0:01:18.1]} 65... Rh2 {[%clk 0:00:09.4]} 66. Kg1 {[%clk 0:01:18.5]}
66... Rxh4 {[%clk 0:00:08.4]} 67. Rxh4+ {[%clk 0:01:16.6]} 67... Kxh4 {[%clk
0:00:10.3]} 68. Kf2 {[%clk 0:01:18.1]} 68... Kg5 {[%clk 0:00:11.9]} 69. Ke3
{[%clk 0:01:19.6]} 69... Kf5 {[%clk 0:00:12]} 70. Kd4 {[%clk 0:01:20.9]} 70...
Kf4 {[%clk 0:00:13.2]} 71. Kc5 {[%clk 0:01:22.3]} 71... Kxf3 {[%clk 0:00:14.9]}
72. Kb6 {[%clk 0:01:23.8]} 72... Ke4 {[%clk 0:00:16.8]} 73. Kxa6 {[%clk
0:01:25.2]} 73... Kd5 {[%clk 0:00:18.7]} 74. Kb7 {[%clk 0:01:26.6]} 1-0

[Event "*** Qualifier 4: Titled Tuesday 3|2 Blitz"]
[Site "Chess.com"]
[Date "2017.04.25"]
[Round "1"]
[White "TheLancer"]
[Black "Lawliet64"]
[Result "1-0"]
[WhiteElo "2391"]
[BlackElo "1625"]
[TimeControl "180+2"]
[EndTime "13:10:17 PDT"]
[Termination "TheLancer won on time"]

1. e4 {[%clk 0:03:01.3]} 1... c5 {[%clk 0:02:59]} 2. Nf3 {[%clk 0:03:00.1]} 2...
d6 {[%clk 0:02:58]} 3. d4 {[%clk 0:03:01.3]} 3... cxd4 {[%clk 0:02:57.9]} 4.
Nxd4 {[%clk 0:03:03.2]} 4... Nf6 {[%clk 0:02:58.7]} 5. Nc3 {[%clk 0:03:03.4]}
5... a6 {[%clk 0:02:58.7]} 6. Be2 {[%clk 0:02:52.4]} 6... e5 {[%clk 0:02:56.9]}
7. Nb3 {[%clk 0:02:52.7]} 7... Be7 {[%clk 0:02:52.4]} 8. O-O {[%clk 0:02:47.1]}
8... O-O {[%clk 0:02:40.8]} 9. Be3 {[%clk 0:02:32]} 9... Nc6 {[%clk 0:02:39]}
10. f3 {[%clk 0:02:03.1]} 10... Be6 {[%clk 0:02:33.9]} 11. Nd5 {[%clk
0:02:02.5]} 11... b5 {[%clk 0:02:17.6]} 12. a4 {[%clk 0:01:34.6]} 12... b4
{[%clk 0:02:01.9]} 13. a5 {[%clk 0:00:56]} 13... Nd7 {[%clk 0:01:09.1]} 14. Nb6
{[%clk 0:00:21.6]} 14... Nxb6 {[%clk 0:01:02.4]} 15. axb6 {[%clk 0:00:23.5]}
15... Bc8 {[%clk 0:00:57.2]} 16. Na5 {[%clk 0:00:18.3]} 16... Nxa5 {[%clk
0:00:49.6]} 17. Rxa5 {[%clk 0:00:20.2]} 17... Bb7 {[%clk 0:00:50.6]} 18. Bc4
{[%clk 0:00:21.3]} 18... Qd7 {[%clk 0:00:47]} 19. Bd5 {[%clk 0:00:21.4]} 19...
Rfb8 {[%clk 0:00:48.3]} 20. Bxb7 {[%clk 0:00:22]} 20... Rxb7 {[%clk 0:00:49.7]}
21. Qd3 {[%clk 0:00:17.7]} 21... Rab8 {[%clk 0:00:35.6]} 22. Rxa6 {[%clk
0:00:14.7]} 22... Bd8 {[%clk 0:00:36.6]} 23. h3 {[%clk 0:00:09]} 23... h6 {[%clk
0:00:37]} 24. Kh2 {[%clk 0:00:09.5]} 24... Qc6 {[%clk 0:00:34.6]} 25. Rd1 {[%clk
0:00:10.2]} 25... Bxb6 {[%clk 0:00:34.5]} 26. Bxb6 {[%clk 0:00:11.3]} 26... Rxb6
{[%clk 0:00:29]} 27. Rxb6 {[%clk 0:00:12.5]} 27... Rxb6 {[%clk 0:00:28.8]} 28.
Rd2 {[%clk 0:00:14.1]} 28... Ra6 {[%clk 0:00:26.3]} 29. Qb3 {[%clk 0:00:14.4]}
29... Qb6 {[%clk 0:00:26.2]} 30. Qd5 {[%clk 0:00:14]} 30... Ra1 {[%clk
0:00:22.8]} 31. Qxd6 {[%clk 0:00:07.8]} 31... Qg1+ {[%clk 0:00:24]} 32. Kg3
{[%clk 0:00:08.9]} 32... Qe1+ {[%clk 0:00:24]} 33. Rf2 {[%clk 0:00:10.1]} 33...
Rd1 {[%clk 0:00:24.1]} 34. Qb8+ {[%clk 0:00:10.7]} 34... Kh7 {[%clk 0:00:24.1]}
35. Qxe5 {[%clk 0:00:11.9]} 35... Rd2 {[%clk 0:00:21.7]} 36. Qf5+ {[%clk
0:00:13.2]} 36... Kg8 {[%clk 0:00:21.8]} 37. Qc8+ {[%clk 0:00:13]} 37... Kh7
{[%clk 0:00:21.7]} 38. Qc5 {[%clk 0:00:14.6]} 38... b3 {[%clk 0:00:19]} 39. cxb3
{[%clk 0:00:15.2]} 39... Rxb2 {[%clk 0:00:19.7]} 40. b4 {[%clk 0:00:15.2]} 40...
Qxb4 {[%clk 0:00:17.1]} 41. Qf5+ {[%clk 0:00:13.8]} 41... Kg8 {[%clk 0:00:15.6]}
42. Rxb2 {[%clk 0:00:15.1]} 42... Qxb2 {[%clk 0:00:15.4]} 43. Qc8+ {[%clk
0:00:16.7]} 43... Kh7 {[%clk 0:00:15.6]} 44. Qc5 {[%clk 0:00:16.8]} 44... Qb8+
{[%clk 0:00:15]} 45. f4 {[%clk 0:00:17.2]} 45... Kg8 {[%clk 0:00:15.9]} 46. Qe5
{[%clk 0:00:17.1]} 46... Qb3+ {[%clk 0:00:12.4]} 47. Kh2 {[%clk 0:00:18.1]}
47... Qb7 {[%clk 0:00:11.5]} 48. Qf5 {[%clk 0:00:18.3]} 48... Qb8 {[%clk
0:00:11.3]} 49. e5 {[%clk 0:00:18]} 49... Qe8 {[%clk 0:00:10.8]} 50. Qg4 {[%clk
0:00:19]} 50... Qa4 {[%clk 0:00:10.5]} 51. f5 {[%clk 0:00:18.2]} 51... Qa1
{[%clk 0:00:09.3]} 52. Qg3 {[%clk 0:00:18.4]} 52... Qb1 {[%clk 0:00:07.6]} 53.
f6 {[%clk 0:00:19.3]} 53... g5 {[%clk 0:00:06.7]} 54. h4 {[%clk 0:00:20.2]}
54... Qf5 {[%clk 0:00:07.2]} 55. hxg5 {[%clk 0:00:21.3]} 55... hxg5 {[%clk
0:00:08.4]} 56. Qe3 {[%clk 0:00:18.2]} 56... Qg6 {[%clk 0:00:03.6]} 57. e6
{[%clk 0:00:16]} 57... Qxf6 {[%clk 0:00:02.3]} 58. e7 {[%clk 0:00:16.2]} 1-0

[Event "*** Qualifier 4: Titled Tuesday 3|2 Blitz"]
[Site "Chess.com"]
[Date "2017.04.25"]
[Round "1"]
[White "woodhy"]
[Black "daro94"]
[Result "1/2-1/2"]
[WhiteElo "2382"]
[BlackElo "2725"]
[TimeControl "180+2"]
[EndTime "13:10:31 PDT"]
[Termination "Game drawn - insufficient material"]

1. e4 {[%clk 0:02:57.9]} 1... d6 {[%clk 0:02:44.7]} 2. d4 {[%clk 0:02:56.6]}
2... g6 {[%clk 0:02:43.7]} 3. Nc3 {[%clk 0:02:57.3]} 3... Bg7 {[%clk 0:02:28.1]}
4. Nf3 {[%clk 0:02:59.2]} 4... a6 {[%clk 0:02:29.2]} 5. Be3 {[%clk 0:02:56.3]}
5... Nd7 {[%clk 0:02:30.3]} 6. h3 {[%clk 0:02:51.1]} 6... b5 {[%clk 0:02:29.3]}
7. Ne2 {[%clk 0:02:51.9]} 7... Bb7 {[%clk 0:02:26.5]} 8. Ng3 {[%clk 0:02:52.3]}
8... Ngf6 {[%clk 0:02:24.9]} 9. Bd3 {[%clk 0:02:53.2]} 9... c5 {[%clk
0:02:25.8]} 10. c3 {[%clk 0:02:54.1]} 10... O-O {[%clk 0:02:26.5]} 11. O-O
{[%clk 0:02:55.1]} 11... e5 {[%clk 0:02:26.9]} 12. d5 {[%clk 0:02:54.2]} 12...
c4 {[%clk 0:02:21.3]} 13. Bc2 {[%clk 0:02:55.3]} 13... Qc7 {[%clk 0:02:15.6]}
14. Qd2 {[%clk 0:02:54.8]} 14... Nc5 {[%clk 0:02:16.4]} 15. Bh6 {[%clk
0:02:54.7]} 15... Bc8 {[%clk 0:01:59.2]} 16. Nh4 {[%clk 0:02:46.9]} 16... Ne8
{[%clk 0:01:17]} 17. Bxg7 {[%clk 0:02:41.4]} 17... Nxg7 {[%clk 0:01:17]} 18. f4
{[%clk 0:02:40.9]} 18... f6 {[%clk 0:01:15.6]} 19. fxe5 {[%clk 0:02:30.3]} 19...
dxe5 {[%clk 0:01:16.7]} 20. Qh6 {[%clk 0:01:57.8]} 20... Ne8 {[%clk 0:01:13.6]}
21. Rf2 {[%clk 0:01:54.4]} 21... Qg7 {[%clk 0:00:56.8]} 22. Qe3 {[%clk
0:01:54.4]} 22... Nb7 {[%clk 0:00:58.2]} 23. a4 {[%clk 0:01:53.6]} 23... bxa4
{[%clk 0:00:37]} 24. Bxa4 {[%clk 0:01:55.5]} 24... Nbd6 {[%clk 0:00:37.4]} 25.
Raf1 {[%clk 0:01:39.5]} 25... Rb8 {[%clk 0:00:22.5]} 26. Qc5 {[%clk 0:01:32.8]}
26... Bd7 {[%clk 0:00:16.2]} 27. Bd1 {[%clk 0:01:24.5]} 27... Rc8 {[%clk
0:00:13.6]} 28. Qb6 {[%clk 0:01:23.2]} 28... Qh6 {[%clk 0:00:14.3]} 29. Nf3
{[%clk 0:01:17.2]} 29... Nf7 {[%clk 0:00:10.9]} 30. Qxa6 {[%clk 0:01:13.9]}
30... Ned6 {[%clk 0:00:12.3]} 31. Qa7 {[%clk 0:01:10.1]} 31... Bb5 {[%clk
0:00:08.1]} 32. Kh2 {[%clk 0:01:10.9]} 32... Ra8 {[%clk 0:00:09.2]} 33. Qe7
{[%clk 0:01:08.9]} 33... Qg7 {[%clk 0:00:06.9]} 34. Nh4 {[%clk 0:01:01.2]} 34...
Rfe8 {[%clk 0:00:06.9]} 35. Qxf6 {[%clk 0:01:01]} 35... Qxf6 {[%clk 0:00:08.3]}
36. Rxf6 {[%clk 0:01:01.6]} 36... Ra2 {[%clk 0:00:09.6]} 37. R1f2 {[%clk
0:00:54.5]} 37... Ra1 {[%clk 0:00:10.7]} 38. Bg4 {[%clk 0:00:52.7]} 38... Kg7
{[%clk 0:00:09.2]} 39. Be6 {[%clk 0:00:53.5]} 39... Ng5 {[%clk 0:00:10]} 40. Bd7
{[%clk 0:00:34.3]} 40... Bxd7 {[%clk 0:00:10.8]} 41. Rxd6 {[%clk 0:00:35.4]}
41... Re7 {[%clk 0:00:12.3]} 42. Rb6 {[%clk 0:00:31]} 42... Re1 {[%clk
0:00:13.1]} 43. Rb7 {[%clk 0:00:22.5]} 43... Rd1 {[%clk 0:00:10.9]} 44. Nhf5+
{[%clk 0:00:15.9]} 44... gxf5 {[%clk 0:00:11.7]} 45. Nxf5+ {[%clk 0:00:16.5]}
45... Bxf5 {[%clk 0:00:04.4]} 46. Rxe7+ {[%clk 0:00:18.4]} 46... Kf6 {[%clk
0:00:05.9]} 47. Rxf5+ {[%clk 0:00:17.5]} 47... Kxe7 {[%clk 0:00:07]} 48. Rxe5+
{[%clk 0:00:18.9]} 48... Kf6 {[%clk 0:00:07.8]} 49. Rf5+ {[%clk 0:00:17.3]}
49... Kg6 {[%clk 0:00:09.4]} 50. Re5 {[%clk 0:00:15.4]} 50... Rd2 {[%clk
0:00:10.1]} 51. Kg3 {[%clk 0:00:15.7]} 51... Rxb2 {[%clk 0:00:10.9]} 52. h4
{[%clk 0:00:16.7]} 52... Nf7 {[%clk 0:00:12.2]} 53. Re6+ {[%clk 0:00:17.8]}
53... Kg7 {[%clk 0:00:13.8]} 54. Rc6 {[%clk 0:00:18.8]} 54... Rc2 {[%clk
0:00:14.4]} 55. Rxc4 {[%clk 0:00:19.4]} 55... Nd6 {[%clk 0:00:15.2]} 56. Rc7+
{[%clk 0:00:18.9]} 56... Kf6 {[%clk 0:00:16.1]} 57. Rxh7 {[%clk 0:00:19.5]}
57... Nxe4+ {[%clk 0:00:17.2]} 58. Kf4 {[%clk 0:00:21.4]} 58... Nxc3 {[%clk
0:00:18]} 59. Rh6+ {[%clk 0:00:21.1]} 59... Kg7 {[%clk 0:00:19.3]} 60. Rd6
{[%clk 0:00:20.1]} 60... Rxg2 {[%clk 0:00:19.9]} 61. h5 {[%clk 0:00:21.2]} 61...
Rd2 {[%clk 0:00:21]} 62. h6+ {[%clk 0:00:21.7]} 62... Kh7 {[%clk 0:00:21.9]} 63.
Ke5 {[%clk 0:00:22.9]} 63... Re2+ {[%clk 0:00:23.3]} 64. Kf4 {[%clk 0:00:22.6]}
64... Re1 {[%clk 0:00:23.7]} 65. Kf3 {[%clk 0:00:21]} 65... Rd1 {[%clk
0:00:24.5]} 66. Rc6 {[%clk 0:00:20.6]} 66... Nxd5 {[%clk 0:00:23.2]} 67. Rd6
{[%clk 0:00:21.6]} 67... Rd3+ {[%clk 0:00:23.5]} 68. Ke4 {[%clk 0:00:21.8]}
68... Rd1 {[%clk 0:00:24.3]} 69. Rxd5 {[%clk 0:00:22.1]} 69... Rxd5 {[%clk
0:00:25.6]} 70. Kxd5 {[%clk 0:00:24]} 70... Kxh6 {[%clk 0:00:27.2]} 1/2-1/2

[Event "*** Qualifier 4: Titled Tuesday 3|2 Blitz"]
[Site "Chess.com"]
[Date "2017.04.25"]
[Round "1"]
[White "maciek_92"]
[Black "kreonx"]
[Result "1-0"]
[WhiteElo "2515"]
[BlackElo "2216"]
[TimeControl "180+2"]
[EndTime "13:11:39 PDT"]
[Termination "maciek_92 won by checkmate"]

1. c4 {[%clk 0:02:55.9]} 1... e5 {[%clk 0:02:58.4]} 2. Nc3 {[%clk 0:02:56.9]}
2... Nc6 {[%clk 0:02:58.4]} 3. g3 {[%clk 0:02:57.9]} 3... g6 {[%clk 0:02:59.4]}
4. Bg2 {[%clk 0:02:57.8]} 4... Bg7 {[%clk 0:03:00.3]} 5. e4 {[%clk 0:02:54]}
5... d6 {[%clk 0:02:58.5]} 6. Nge2 {[%clk 0:02:55.4]} 6... Be6 {[%clk
0:02:58.7]} 7. d3 {[%clk 0:02:55.8]} 7... Qd7 {[%clk 0:02:59.9]} 8. Nd5 {[%clk
0:02:56.4]} 8... O-O-O {[%clk 0:02:59.2]} 9. h4 {[%clk 0:02:40.4]} 9... Nd4
{[%clk 0:02:51.1]} 10. Nxd4 {[%clk 0:02:37]} 10... exd4 {[%clk 0:02:51.4]} 11.
Bg5 {[%clk 0:02:37.6]} 11... f6 {[%clk 0:02:47.3]} 12. Bd2 {[%clk 0:02:38.3]}
12... c6 {[%clk 0:02:45.6]} 13. Nf4 {[%clk 0:02:39]} 13... Bf7 {[%clk
0:02:26.9]} 14. Bh3 {[%clk 0:02:20.4]} 14... f5 {[%clk 0:02:27.8]} 15. g4 {[%clk
0:02:21.8]} 15... Ne7 {[%clk 0:02:20.7]} 16. gxf5 {[%clk 0:02:00.5]} 16... gxf5
{[%clk 0:02:20.7]} 17. Qa4 {[%clk 0:01:28.8]} 17... Kb8 {[%clk 0:02:18.6]} 18.
O-O-O {[%clk 0:01:29.4]} 18... Bf6 {[%clk 0:02:05.1]} 19. exf5 {[%clk
0:01:17.1]} 19... Nxf5 {[%clk 0:01:50.9]} 20. Rde1 {[%clk 0:01:00.3]} 20... Rde8
{[%clk 0:01:47.4]} 21. Qd1 {[%clk 0:00:46.7]} 21... Rxe1 {[%clk 0:01:41.5]} 22.
Rxe1 {[%clk 0:00:48.6]} 22... h5 {[%clk 0:01:16.5]} 23. Qe2 {[%clk 0:00:28.7]}
23... Re8 {[%clk 0:01:04.7]} 24. Qf1 {[%clk 0:00:29.9]} 24... Rxe1+ {[%clk
0:01:05.2]} 25. Qxe1 {[%clk 0:00:30.5]} 25... Bxh4 {[%clk 0:00:54.4]} 26. Qe4
{[%clk 0:00:30.6]} 26... Bxf2 {[%clk 0:00:51.3]} 27. Bxf5 {[%clk 0:00:31]} 27...
Qe8 {[%clk 0:00:52.3]} 28. Qxe8+ {[%clk 0:00:31.2]} 28... Bxe8 {[%clk
0:00:53.4]} 29. Kd1 {[%clk 0:00:31.8]} 29... h4 {[%clk 0:00:52.7]} 30. Ke2
{[%clk 0:00:33.3]} 30... Bg3 {[%clk 0:00:53.1]} 31. Kf3 {[%clk 0:00:34.6]} 31...
Kc7 {[%clk 0:00:49.2]} 32. b3 {[%clk 0:00:35.8]} 32... Kb6 {[%clk 0:00:49.2]}
33. a4 {[%clk 0:00:34.4]} 33... Bf7 {[%clk 0:00:40.2]} 34. Bg4 {[%clk
0:00:32.7]} 34... a6 {[%clk 0:00:23.6]} 35. a5+ {[%clk 0:00:32.5]} 35... Ka7
{[%clk 0:00:24.3]} 36. Ne2 {[%clk 0:00:30.4]} 36... Be5 {[%clk 0:00:22.1]} 37.
Nf4 {[%clk 0:00:26.7]} 37... b6 {[%clk 0:00:21.6]} 38. Be1 {[%clk 0:00:27.1]}
38... Bf6 {[%clk 0:00:19.9]} 39. Nh5 {[%clk 0:00:24.5]} 39... Be7 {[%clk
0:00:18]} 40. Ng7 {[%clk 0:00:25.2]} 40... bxa5 {[%clk 0:00:15]} 41. Bxa5 {[%clk
0:00:21.5]} 41... d5 {[%clk 0:00:16.3]} 42. Nf5 {[%clk 0:00:21.7]} 42... dxc4
{[%clk 0:00:13.9]} 43. bxc4 {[%clk 0:00:21.2]} 43... Bf8 {[%clk 0:00:12.5]} 44.
Nxd4 {[%clk 0:00:21.2]} 44... Be8 {[%clk 0:00:12.1]} 45. Ne6 {[%clk 0:00:19.7]}
45... Ba3 {[%clk 0:00:12]} 46. c5 {[%clk 0:00:20.3]} 46... Bf7 {[%clk
0:00:11.8]} 47. d4 {[%clk 0:00:21.6]} 47... Bb2 {[%clk 0:00:11.9]} 48. Ke4
{[%clk 0:00:22.9]} 48... Bg6+ {[%clk 0:00:12.8]} 49. Ke5 {[%clk 0:00:24.1]}
49... Bd3 {[%clk 0:00:13.9]} 50. Kd6 {[%clk 0:00:24.6]} 50... Be4 {[%clk
0:00:14.5]} 51. Bh3 {[%clk 0:00:23.5]} 51... Bd5 {[%clk 0:00:15.2]} 52. Ke5
{[%clk 0:00:21.3]} 52... Bf3 {[%clk 0:00:14.7]} 53. Nf4 {[%clk 0:00:19.8]} 53...
Kb7 {[%clk 0:00:13.8]} 54. Ng6 {[%clk 0:00:20.1]} 54... Bd5 {[%clk 0:00:12.4]}
55. Nxh4 {[%clk 0:00:21.1]} 55... Bb3 {[%clk 0:00:13.2]} 56. Nf5 {[%clk
0:00:22.1]} 56... Bc1 {[%clk 0:00:14.7]} 57. Nd6+ {[%clk 0:00:23.6]} 57... Ka7
{[%clk 0:00:14.6]} 58. Bg2 {[%clk 0:00:21.4]} 58... Ba4 {[%clk 0:00:15.3]} 59.
Nc4 {[%clk 0:00:19.4]} 59... Bh6 {[%clk 0:00:15.1]} 60. Bb6+ {[%clk 0:00:20.2]}
60... Kb8 {[%clk 0:00:14.8]} 61. Na5 {[%clk 0:00:21.7]} 61... Bg7+ {[%clk
0:00:14.6]} 62. Ke4 {[%clk 0:00:22.9]} 62... Kc8 {[%clk 0:00:13.4]} 63. Kd3
{[%clk 0:00:21.6]} 63... Kd7 {[%clk 0:00:14]} 64. Bh3+ {[%clk 0:00:20.1]} 64...
Ke7 {[%clk 0:00:15.1]} 65. Bg4 {[%clk 0:00:19.4]} 65... Bb5+ {[%clk 0:00:16.2]}
66. Ke4 {[%clk 0:00:20.2]} 66... Ba4 {[%clk 0:00:17.3]} 67. Bc7 {[%clk
0:00:21.4]} 67... Bc2+ {[%clk 0:00:17.7]} 68. Ke3 {[%clk 0:00:22.7]} 68... Bh6+
{[%clk 0:00:18.6]} 69. Bf4 {[%clk 0:00:23.9]} 69... Bg7 {[%clk 0:00:18.6]} 70.
Nxc6+ {[%clk 0:00:24.4]} 70... Ke8 {[%clk 0:00:19.9]} 71. Na5 {[%clk 0:00:24.9]}
71... Ba4 {[%clk 0:00:19.7]} 72. d5 {[%clk 0:00:25.2]} 72... Bf8 {[%clk
0:00:18.8]} 73. d6 {[%clk 0:00:23.3]} 73... Bb5 {[%clk 0:00:16.6]} 74. Bh5+
{[%clk 0:00:23.4]} 74... Kd8 {[%clk 0:00:17.1]} 75. Kd4 {[%clk 0:00:21.3]} 75...
Bd7 {[%clk 0:00:12.5]} 76. Kd5 {[%clk 0:00:17.7]} 76... Be8 {[%clk 0:00:12.6]}
77. Bg4 {[%clk 0:00:16.4]} 77... Bf7+ {[%clk 0:00:10.5]} 78. Be6 {[%clk
0:00:17.4]} 78... Bg6 {[%clk 0:00:08.6]} 79. Bg5+ {[%clk 0:00:18.1]} 79... Ke8
{[%clk 0:00:08.7]} 80. d7# {[%clk 0:00:19.3]} 1-0